bitfinex/quotes_SOLUSD_20251208
["timestamp","ask_amount","ask_price","bid_price","bid_amount"]
[1765154773417,7.58903546,131.77,131.73,10.04123423]
[1765154773603,8.44,131.78,131.74,9.35123423]
[1765154773906,8.44,131.78,131.75,0.69]
[1765154774793,8.44,131.78,131.75,10.04123423]
[1765154775195,8.44,131.78,131.76,0.69]
[1765154775697,32.33623624,131.8,131.76,0.69]
[1765154777098,7.58680194,131.81,131.77,6.03335928]
[1765154777293,8.44,131.8,131.78,0.69]
[1765154778715,16.02735981,131.8,131.76,0.69]
[1765154778907,16.02735981,131.8,131.73,6.03335928]
[1765154778908,8.80994492,131.79,131.73,6.03335928]
[1765154779086,8.80994492,131.79,131.76,7.58912014]
[1765154779087,0.5,131.79,131.76,7.58912014]
[1765154779286,0.5,131.79,131.77,0.69]
[1765154780919,16.02742558,131.8,131.77,0.69]
[1765154782003,7.58667779,131.81,131.77,0.69]
[1765154782398,16.02667779,131.81,131.77,0.69]
[1765154782705,7.58667779,131.81,131.77,8.27897511]
[1765154782909,16.02667779,131.81,131.78,0.72]
[1765154783210,16.02567194,131.83,131.78,6.75335928]
[1765154783616,16.02567194,131.83,131.79,0.72]
[1765154783915,7.58207597,131.89,131.82,6.03335928]
[1765154784116,8.44,131.88,131.82,6.03335928]
[1765154784290,8.44,131.88,131.82,6.75335928]
[1765154784606,8.80994492,131.87,131.82,6.75335928]
[1765154785013,8.80994492,131.87,131.83,0.72]
[1765154785209,7.58337859,131.87,131.84,6.03335928]
[1765154785608,7.58337859,131.87,131.85,0.72]
[1765154785915,16.02337859,131.87,131.85,0.72]
[1765154786413,8.44,131.87,131.85,0.72]
[1765154786791,8.44,131.87,131.84,6.03335928]
[1765154787196,8.44,131.87,131.84,6.75335928]
[1765154787400,8.44,131.87,131.84,6.03335928]
[1765154787602,16.02217882,131.89,131.85,6.75335928]
[1765154787799,16.02217882,131.89,131.85,0.72]
[1765154788116,16.02217882,131.89,131.86,0.72]
[1765154788620,7.58217882,131.89,131.86,0.72]
[1765154788822,16.02217882,131.89,131.86,0.72]
[1765154789191,34.97736875,131.89,131.84,6.03335928]
[1765154789414,129.91880892,131.88,131.84,0.72]
[1765154790713,7.5832259,131.87,131.84,0.72]
[1765154793321,128.69162636,131.88,131.84,0.72]
[1765154793621,8.44,131.87,131.84,6.75335928]
[1765154793822,104.8,131.88,131.85,6.03335928]
[1765154794023,104.8,131.88,131.85,6.75335928]
[1765154794209,104.8,131.88,131.86,6.75335928]
[1765154794608,104.8,131.88,131.87,0.72]
[1765154794805,104.8,131.88,131.87,2.96888805]
[1765154795124,104.8,131.88,131.87,8.3032259]
[1765154795326,104.8,131.88,131.87,10.55211395]
[1765154795509,8.44,131.9,131.87,10.55211395]
[1765154795697,8.44,131.9,131.88,0.72]
[1765154795897,113.24,131.91,131.88,2.96888805]
[1765154796106,113.24,131.91,131.89,0.72]
[1765154797221,7.58056299,131.92,131.89,0.72]
[1765154797410,16.02056299,131.92,131.89,0.72]
[1765154797799,121.108864,131.94,131.89,14.32461767]
[1765154798007,8.44,131.93,131.89,14.32461767]
[1765154798218,8.44,131.93,131.9,0.72]
[1765154799512,16.01978246,131.93,131.9,0.72]
[1765154800227,8.44,131.94,131.9,0.72]
[1765154800823,7.57977715,131.93,131.9,0.72]
[1765154801202,8.44,131.94,131.9,6.74260227]
[1765154801628,8.44,131.94,131.91,0.72]
[1765154801807,8.44,131.94,131.91,6.74260227]
[1765154802009,8.44,131.95,131.91,6.74260227]
[1765154802333,8.44,131.95,131.92,0.72]
[1765154802711,121.308864,131.97,131.92,0.72]
[1765154802914,8.44,131.95,131.92,0.72]
[1765154803134,8.44,131.95,131.92,8.3001172]
[1765154803527,105.0,131.97,131.93,0.72]
[1765154803854,0.2,131.97,131.94,6.02260227]
[1765154804325,0.2,131.97,131.95,0.72]
[1765154804526,0.2,131.97,131.95,6.74260227]
[1765154804724,0.2,131.97,131.95,0.72]
[1765154804907,0.2,131.97,131.96,0.72]
[1765154806027,0.2,131.97,131.94,0.72]
[1765154806216,0.2,131.97,131.92,0.72]
[1765154806525,0.2,131.97,131.93,0.72]
[1765154806526,22.22030445,131.97,131.93,0.72]
[1765154807407,16.19770218,131.97,131.93,8.29960446]
[1765154808123,16.19770218,131.97,131.93,0.72]
[1765154808429,22.22030445,131.97,131.93,0.72]
[1765154808818,6.02260227,131.95,131.89,8.30170127]
[1765154809017,6.02260227,131.93,131.89,0.72]
[1765154809225,7.58035172,131.92,131.89,0.72]
[1765154810614,7.57977715,131.93,131.89,0.72]
[1765154811027,13.60237942,131.93,131.89,0.72]
[1765154812034,7.57977715,131.93,131.89,8.30204509]
[1765154812619,7.57977715,131.93,131.9,0.7]
[1765154817234,6.02260227,131.92,131.87,0.69]
[1765154817422,8.42,131.91,131.87,0.69]
[1765154817828,6.02260227,131.9,131.85,7.58418083]
[1765154818031,14.44260227,131.91,131.85,8.27418083]
[1765154818334,7.58150113,131.9,131.86,0.69]
[1765154820732,28.78475528,131.9,131.86,0.69]
[1765154821030,2.24950131,131.89,131.84,0.69]
[1765154821232,8.42,131.88,131.84,0.69]
[1765154821426,10.66950131,131.88,131.84,0.69]
[1765154821610,26.97836531,131.88,131.84,0.69]
[1765154821815,2.24950131,131.87,131.84,0.69]
[1765154822016,7.583801,131.86,131.84,0.69]
[1765154822223,7.583801,131.86,131.83,0.69]
[1765154822514,9.83292921,131.87,131.83,8.27549655]
[1765154822859,104.8,131.93,131.84,9.83431939]
[1765154823029,18.24985303,131.92,131.86,2.24950131]
[1765154823340,2.24950131,131.91,131.85,0.69]
[1765154823836,2.24950131,131.91,131.85,2.93950131]
[1765154824009,7.58150113,131.9,131.86,0.69]
[1765154824214,23.88934565,131.92,131.87,2.24950131]
[1765154824532,23.88934565,131.92,131.88,2.24950131]
[1765154824533,8.42,131.91,131.88,2.24950131]
[1765154824845,8.42,131.91,131.88,6.02226067]
[1765154825020,8.42,131.91,131.89,0.69]
[1765154825227,8.42,131.92,131.89,6.71226067]
[1765154825420,8.42,131.95,131.89,6.71226067]
[1765154825728,6.02226067,131.94,131.9,0.69]
[1765154825929,7.57977715,131.93,131.87,13.60503587]
[1765154826132,7.57977715,131.93,131.88,0.69]
[1765154827434,7.57977715,131.93,131.88,14.29454049]
[1765154827821,26.52922003,131.93,131.89,0.69]
[1765154828024,32.5514807,131.93,131.89,0.69]
[1765154828427,15.99977715,131.93,131.89,0.69]
[1765154828849,7.57940819,131.94,131.89,0.69]
[1765154829029,15.99940819,131.94,131.89,14.29391741]
[1765154829524,15.99940819,131.94,131.9,0.69]
[1765154829846,22.02166886,131.94,131.9,0.69]
[1765154830044,7.57940819,131.94,131.9,0.69]
[1765154831045,7.57940819,131.94,131.9,8.2711414]
[1765154831226,7.57940819,131.94,131.9,7.5811414]
[1765154831425,7.57940819,131.94,131.91,0.69]
[1765154832547,15.99862826,131.95,131.91,8.2706717]
[1765154833425,7.57811229,131.96,131.92,6.71226067]
[1765154833926,7.57811229,131.96,131.93,0.69]
[1765154834127,7.77758338,131.97,131.93,6.71226067]
[1765154834328,0.2,131.97,131.94,6.02226067]
[1765154834556,0.2,131.97,131.95,13.60088893]
[1765154834738,0.2,131.97,131.95,14.29088893]
[1765154834942,0.2,131.97,131.96,0.69]
[1765154837855,0.2,131.97,131.96,8.26805395]
[1765154838030,0.2,131.97,131.96,14.29031462]
[1765154838458,0.2,131.97,131.96,8.26805395]
[1765154841261,0.2,131.97,131.96,17.57758172]
[1765154841765,0.2,131.97,131.96,8.26805395]
[1765154843070,0.2,131.97,131.96,17.57758172]
[1765154843834,0.2,131.97,131.96,9.99952777]
[1765154844038,0.2,131.97,131.96,17.57758172]
[1765154844658,0.2,131.97,131.96,11.7759057]
[1765154849337,0.2,131.97,131.94,4.17785175]
[1765154849544,0.2,131.97,131.95,0.67]
[1765154853251,7.77759685,131.97,131.95,0.67]
[1765154854063,7.77759685,131.97,131.94,0.67]
[1765154854960,30.22914792,131.97,131.91,16.65047499]
[1765154855162,3.50785175,131.96,131.91,15.98047499]
[1765154855358,30.22914792,131.97,131.92,0.67]
[1765154855558,30.22914792,131.97,131.92,8.25021237]
[1765154855760,26.72129617,131.97,131.92,11.75806412]
[1765154856073,26.72129617,131.97,131.93,0.67]
[1765154860660,30.22914792,131.97,131.93,0.67]
[1765154862251,3.50785175,131.95,131.89,0.67]
[1765154862571,19.81671575,131.94,131.89,0.67]
[1765154862766,3.50785175,131.93,131.89,0.67]
[1765154862973,3.50785175,131.93,131.88,16.65262947]
[1765154863271,3.50785175,131.92,131.87,0.67]
[1765154863448,3.50785175,131.91,131.87,0.67]
[1765154863858,8.4,131.92,131.87,0.67]
[1765154864362,7.58035172,131.92,131.88,7.58262037]
[1765154864757,7.58035172,131.92,131.88,8.25262037]
[1765154864962,7.58035172,131.92,131.88,7.58262037]
[1765154865272,7.58035172,131.92,131.89,0.67]
[1765154868067,7.58035172,131.92,131.87,7.58313419]
[1765154868275,7.58035172,131.92,131.88,0.67]
[1765154869080,7.58035172,131.92,131.88,8.25248012]
[1765154869256,7.58035172,131.92,131.88,11.76033187]
[1765154869577,7.58000667,131.93,131.89,8.25201836]
[1765154869884,23.88825945,131.94,131.89,11.75987011]
[1765154870178,22.65232929,131.97,131.91,3.50785175]
[1765154870384,31.05232929,131.97,131.92,0.67]
[1765154870768,47.36119329,131.97,131.92,0.67]
[1765154870982,7.57805395,131.96,131.92,0.67]
[1765154874289,7.57805395,131.96,131.92,11.75814146]
[1765154874584,7.77771975,131.97,131.93,3.50785175]
[1765154874885,7.77771975,131.97,131.93,4.21785175]
[1765154875084,7.77771975,131.97,131.94,0.71]
[1765154875291,0.2,131.97,131.94,0.71]
[1765154876163,0.2,131.97,131.94,4.21785175]
[1765154876576,0.2,131.97,131.95,0.71]
[1765154877890,0.2,131.97,131.95,11.79632534]
[1765154878077,0.2,131.97,131.95,0.71]
[1765154878266,11.28540717,131.97,131.93,8.4]
[1765154878459,11.28540717,131.97,131.93,9.08]
[1765154879683,30.22910649,131.97,131.93,9.08]
[1765154879991,3.50785175,131.95,131.9,0.68]
[1765154880368,3.50785175,131.94,131.9,0.68]
[1765154881870,7.57977715,131.93,131.9,0.68]
[1765154882569,11.0876289,131.93,131.89,9.08]
[1765154882785,11.0876289,131.93,131.89,0.68]
[1765154883175,30.03707178,131.93,131.89,0.68]
[1765154884784,26.52922003,131.93,131.89,0.68]
[1765154886581,7.57977715,131.93,131.89,8.2619119]
[1765154886987,7.57977715,131.93,131.9,0.68]
[1765154888894,7.57920266,131.94,131.9,0.68]
[1765154891579,104.8,131.95,131.91,3.50785175]
[1765154892206,112.37872553,131.95,131.92,0.68]
[1765154892384,115.88657728,131.95,131.9,15.98139284]
[1765154892583,115.88657728,131.95,131.91,0.68]
[1765154892888,143.23314795,131.95,131.91,0.68]
[1765154895900,112.37872553,131.95,131.91,8.26084674]
[1765154896200,120.77872553,131.95,131.91,8.26084674]
[1765154896491,120.77872553,131.95,131.92,0.68]
[1765154897988,112.37872553,131.95,131.92,0.68]
[1765154899208,16.308864,131.92,131.84,8.37115906]
[1765154899498,28.21671575,131.92,131.86,8.26347599]
[1765154899903,28.21671575,131.92,131.87,0.68]
[1765154900811,26.95798831,131.92,131.87,0.68]
[1765154901111,7.58092638,131.91,131.87,0.68]
[1765154901678,7.58092638,131.91,131.87,8.26295744]
[1765154902003,32.28937035,131.92,131.87,8.26295744]
[1765154902201,32.28937035,131.92,131.88,0.67]
[1765154902576,2.24912431,131.91,131.88,0.67]
[1765154902905,2.24912431,131.91,131.88,8.25253183]
[1765154903089,2.24912431,131.91,131.89,0.67]
[1765154903290,9.83010695,131.91,131.89,0.67]
[1765154903495,9.83010695,131.91,131.88,8.25253183]
[1765154903813,9.83010695,131.91,131.89,0.67]
[1765154905205,2.24912431,131.91,131.89,0.67]
[1765154905407,34.53846347,131.92,131.89,0.67]
[1765154905585,9.82959947,131.92,131.89,0.67]
[1765154905901,2.24912431,131.91,131.89,0.67]
[1765154908812,2.24912431,131.91,131.89,8.25189245]
[1765154908992,9.82910575,131.93,131.89,8.25189245]
[1765154909184,9.82910575,131.93,131.9,0.67]
[1765154909606,23.88831534,131.94,131.9,0.67]
[1765154909908,34.53743965,131.94,131.9,0.67]
[1765154910606,15.97945134,131.94,131.9,8.25102918]
[1765154910981,15.97945134,131.94,131.91,0.67]
[1765154912810,7.57945134,131.94,131.91,0.67]
[1765154913791,112.37876157,131.95,131.91,8.25083031]
[1765154914192,112.37876157,131.95,131.92,0.67]
[1765154914608,7.57876157,131.95,131.92,0.67]
[1765154915188,9.82788588,131.95,131.92,0.67]
[1765154916312,2.24912431,131.94,131.92,0.67]
[1765154917508,9.82788588,131.95,131.92,0.67]
[1765154918386,16.308864,131.96,131.92,8.25032309]
[1765154918710,23.88694211,131.96,131.92,8.25032309]
[1765154918893,23.88694211,131.96,131.93,0.67]
[1765154919613,7.7775901,131.97,131.93,0.67]
[1765154920304,0.2,131.97,131.94,7.57920266]
[1765154920810,0.2,131.97,131.95,0.67]
[1765154921816,7.77749247,131.97,131.95,0.67]
[1765154922806,0.2,131.97,131.95,0.67]
[1765154923228,0.2,131.97,131.95,8.24825663]
[1765154923522,0.2,131.97,131.95,10.49738094]
[1765154923725,0.2,131.97,131.96,0.67]
[1765154924825,0.2,131.97,131.96,10.49717826]
[1765154927010,0.2,131.97,131.96,8.24805395]
[1765154927917,0.2,131.97,131.96,10.49717826]
[1765154928416,0.2,131.97,131.96,19.30712318]
[1765154930113,0.2,131.97,131.96,35.61598718]
[1765154930440,26.13053291,132.06,131.96,77.31166238]
[1765154930600,9.82166891,132.06,131.99,18.55798831]
[1765154930936,9.82166891,132.06,131.99,26.93798831]
[1765154931125,9.82166891,132.06,132.0,2.95912431]
[1765154931429,16.308864,132.06,132.01,2.24912431]
[1765154931736,0.2,132.07,132.03,7.5740362]
[1765154931912,0.2,132.07,132.04,0.71]
[1765154932307,7.77195696,132.07,132.04,0.71]
[1765154936635,0.2,132.07,132.04,8.28340791]
[1765154936819,0.2,132.07,132.05,0.68]
[1765154938039,0.2,132.07,132.05,8.25286865]
[1765154938341,0.2,132.07,132.06,0.68]
[1765154938934,0.2,132.07,132.04,0.68]
[1765154939137,7.77176024,132.07,132.04,0.68]
[1765154941144,0.2,132.07,132.04,8.25342931]
[1765154941315,0.2,132.07,132.05,0.68]
[1765154941736,0.2,132.07,132.05,2.92912431]
[1765154942130,0.2,132.07,132.06,0.68]
[1765154942319,0.2,132.07,132.06,10.50143992]
[1765154942717,0.2,132.07,132.06,8.25231561]
[1765154943437,7.77174225,132.07,132.05,8.38]
[1765154943647,28.9502222,132.07,132.02,0.68]
[1765154943943,28.9502222,132.07,132.03,0.68]
[1765154944348,28.9502222,132.07,132.02,0.68]
[1765154945048,2.24912431,132.06,132.02,0.68]
[1765154945436,7.57288905,132.05,132.02,0.68]
[1765154946249,9.82201336,132.05,132.0,16.6355506]
[1765154947249,2.24912431,132.04,132.0,16.6355506]
[1765154947749,9.82302244,132.04,132.0,9.06]
[1765154948135,28.7566789,132.04,132.0,9.06]
[1765154948437,2.24912431,132.03,132.0,8.38]
[1765154949147,2.24912431,132.03,132.0,0.68]
[1765154949653,7.5746099,132.02,132.0,0.68]
[1765154951852,28.75624335,132.04,132.0,0.68]
[1765154954055,2.24912431,132.02,131.97,9.06]
[1765154954255,2.24912431,132.02,131.96,0.68]
[1765154954256,2.24912431,132.0,131.96,0.68]
[1765154954755,16.308864,132.01,131.96,0.68]
[1765154954756,18.55798831,132.01,131.96,0.68]
[1765154955056,18.05798831,132.01,131.96,0.68]
[1765154955255,2.24912431,132.0,131.96,0.68]
[1765154955555,2.24912431,131.99,131.94,7.57905454]
[1765154955859,2.24912431,131.99,131.95,0.68]
[1765154956965,9.82583483,131.99,131.95,0.68]
[1765154957831,18.55798831,132.0,131.95,8.25828559]
[1765154958157,23.88486332,132.0,131.95,8.25828559]
[1765154958359,23.88486332,132.0,131.96,0.68]
[1765154958657,16.308864,132.0,131.96,2.92912431]
[1765154959036,7.57536671,132.01,131.97,8.25747973]
[1765154959236,7.57536671,132.01,131.98,0.68]
[1765154960054,7.5746099,132.02,131.98,0.68]
[1765154960351,7.5746099,132.02,131.98,8.25674513]
[1765154960744,7.5746099,132.02,131.99,0.68]
[1765154962040,23.88278998,132.04,131.99,8.25590391]
[1765154962440,23.88278998,132.04,132.0,0.69]
[1765154963765,23.88278998,132.04,132.0,4.19792909]
[1765154963961,7.57273345,132.06,132.01,11.08311278]
[1765154964158,7.57273345,132.06,132.01,11.77311278]
[1765154964362,7.77195586,132.07,132.02,4.19792909]
[1765154964858,7.77195586,132.07,132.03,0.69]
[1765154965757,7.77195586,132.07,132.03,8.2638914]
[1765154965956,7.77195586,132.07,132.04,0.69]
[1765154966659,0.2,132.07,132.04,0.69]
[1765154967457,0.2,132.07,132.05,3.50792909]
[1765154967659,0.2,132.07,132.05,11.08040063]
[1765154967859,0.2,132.07,132.06,4.19792909]
[1765154970562,0.2,132.07,132.06,11.7702447]
[1765154971974,0.2,132.07,132.04,0.69]
[1765154972180,3.50792909,132.06,132.01,8.2650467]
[1765154972864,3.50792909,132.05,132.01,0.69]
[1765154973060,3.50792909,132.06,132.01,0.69]
[1765154973980,3.50792909,132.05,132.01,0.69]
[1765154975158,3.50792909,132.05,132.0,0.69]
[1765154976086,7.57346258,132.04,132.0,0.69]
[1765154976277,11.08139167,132.04,131.98,11.08465927]
[1765154976460,11.08139167,132.04,132.0,0.69]
[1765154979376,7.57308084,132.05,132.0,8.26572175]
[1765154979980,7.57241057,132.06,132.01,0.69]
[1765154981890,7.57241057,132.06,132.01,8.26477505]
[1765154982186,7.57241057,132.06,132.02,0.69]
[1765154983190,7.57241057,132.06,132.02,8.26447546]
[1765154983373,24.08067704,132.07,132.02,11.77240455]
[1765154983574,24.08067704,132.07,132.03,0.69]
[1765154984387,7.77181304,132.07,132.03,0.69]
[1765154984590,7.77181304,132.07,132.03,8.26354725]
[1765154984970,7.77181304,132.07,132.04,0.69]
[1765154987089,7.77181304,132.07,132.02,15.95447803]
[1765154987090,11.27974213,132.07,132.02,15.95447803]
[1765154987266,3.50792909,132.06,132.03,0.69]
[1765154988685,7.57242445,132.06,132.03,0.69]
[1765154995094,7.57242445,132.06,132.01,15.95504436]
[1765154995271,11.08035354,132.06,132.02,0.67]
[1765154996279,30.01114257,132.06,132.02,0.67]
[1765154996783,3.50792909,132.05,132.0,8.38]
[1765154996980,3.50792909,132.05,132.01,0.67]
[1765154997699,51.19207748,132.06,132.01,0.67]
[1765154997867,35.76921754,132.06,132.01,0.67]
[1765154998271,27.38921754,132.06,132.01,0.67]
[1765154998487,23.88128845,132.06,132.01,0.67]
[1765154999690,23.88128845,132.06,132.02,7.57456332]
[1765155000098,23.88128845,132.06,132.03,0.67]
[1765155000472,27.38921754,132.06,132.03,0.67]
[1765155000679,27.38921754,132.06,132.02,0.67]
[1765155000883,3.50792909,132.04,132.0,0.67]
[1765155001382,11.88792909,132.04,132.0,0.67]
[1765155003293,8.38,132.04,132.0,0.67]
[1765155003495,11.88792909,132.05,132.0,0.67]
[1765155004521,11.08163491,132.04,132.0,0.67]
[1765155004703,7.57370582,132.04,132.0,8.24575581]
[1765155005201,19.4609999,132.05,132.01,0.67]
[1765155005505,11.0809999,132.05,132.01,0.67]
[1765155005686,30.01322254,132.05,132.01,0.67]
[1765155007278,30.01322254,132.05,131.98,93.02944274]
[1765155007279,30.01322254,132.05,131.99,7.57619944]
[1765155007485,3.50792909,132.01,131.94,3.50792909]
[1765155007693,3.50792909,132.01,131.97,0.67]
[1765155008008,3.50792909,132.0,131.97,0.67]
[1765155008502,11.08311278,132.01,131.97,0.67]
[1765155009702,7.57518369,132.01,131.97,0.67]
[1765155011910,7.5740699,132.03,131.99,3.50792909]
[1765155012090,7.5740699,132.03,131.98,3.50792909]
[1765155012294,7.5740699,132.03,131.99,0.67]
[1765155013608,7.57346258,132.04,131.99,8.2459676]
[1765155014117,7.57294672,132.05,132.0,4.17792909]
[1765155014613,7.57294672,132.05,132.01,0.67]
[1765155015196,7.57294672,132.05,132.01,8.24490821]
[1765155015398,3.50792909,132.04,131.99,7.57594052]
[1765155015593,3.50792909,132.04,132.01,0.67]
[1765155015810,30.01309845,132.05,132.01,0.67]
[1765155016114,7.57294672,132.05,132.01,0.67]
[1765155016521,7.57294672,132.05,132.01,8.24507157]
[1765155016696,7.57294672,132.05,132.01,11.75300066]
[1765155016898,7.57294672,132.05,132.02,0.67]
[1765155017205,23.88131498,132.06,132.02,8.24417875]
[1765155017613,23.88131498,132.06,132.03,0.67]
[1765155021518,26.12517681,132.06,132.03,0.67]
[1765155021711,2.24386183,132.04,131.99,0.71]
[1765155021915,2.24386183,132.03,131.99,0.71]
[1765155022819,2.24386183,132.02,131.99,0.71]
[1765155023120,2.24386183,132.01,131.99,0.71]
[1765155023629,9.81918464,132.01,131.99,0.71]
[1765155023831,9.81918464,132.01,131.98,0.71]
[1765155023997,9.81918464,132.01,131.97,0.71]
[1765155023998,2.24386183,132.0,131.97,0.71]
[1765155025601,9.81975414,132.0,131.97,0.71]
[1765155026116,2.24386183,131.99,131.96,8.38]
[1765155026319,2.24386183,131.99,131.96,9.09]
[1765155026817,2.24386183,131.99,131.96,8.38]
[1765155027035,9.82029476,131.99,131.97,0.71]
[1765155027503,7.57590296,132.0,131.97,0.71]
[1765155028027,9.81976479,132.0,131.97,0.71]
[1765155028923,7.57590296,132.0,131.97,0.71]
[1765155029230,2.24386183,131.99,131.96,9.09]
[1765155029430,2.24386183,131.99,131.96,8.38]
[1765155029626,2.24386183,131.99,131.94,7.57896516]
[1765155029815,2.24386183,131.99,131.96,0.71]
[1765155030930,7.57690559,131.98,131.96,0.71]
[1765155031308,7.57642684,131.99,131.96,0.71]
[1765155031630,2.24386183,132.01,131.96,8.28799683]
[1765155032126,2.24386183,132.01,131.97,0.71]
[1765155032714,9.81919158,132.01,131.97,0.71]
[1765155033412,27.31697536,132.02,131.97,0.71]
[1765155033413,9.81966256,132.0,131.97,0.71]
[1765155034510,7.57580073,132.0,131.97,0.71]
[1765155038430,9.81966256,132.0,131.97,0.71]
[1765155038633,9.81966256,132.0,131.94,69.7789563]
[1765155038830,2.24386183,131.99,131.96,0.71]
[1765155039412,28.75905649,132.0,131.96,0.71]
[1765155041709,9.81966256,132.0,131.96,8.2880335]
[1765155042238,9.81966256,132.0,131.97,0.71]
[1765155044414,7.57580073,132.0,131.97,8.28742203]
[1765155044740,7.57580073,132.0,131.97,0.71]
[1765155044930,7.57580073,132.0,131.98,0.71]
[1765155049644,15.95539898,132.01,131.98,0.71]
[1765155050023,18.19926081,132.01,131.98,0.71]
[1765155052347,2.24386183,132.0,131.95,62.2]
[1765155052644,2.24386183,132.0,131.97,0.72]
[1765155053622,9.82011283,132.0,131.97,0.72]
[1765155055044,7.576251,132.0,131.97,0.72]
[1765155056940,9.81847173,132.02,131.97,8.29699678]
[1765155057319,9.81847173,132.02,131.98,0.7]
[1765155057944,9.81847173,132.02,131.98,8.27689132]
[1765155058325,9.81847173,132.02,131.99,0.7]
[1765155059225,18.19847173,132.02,131.99,0.7]
[1765155060253,2.24386183,132.0,131.97,0.7]
[1765155060436,2.24386183,131.99,131.98,0.7]
[1765155061747,16.308864,131.97,131.91,0.7]
[1765155061954,2.24386183,131.92,131.86,0.1]
[1765155062134,2.24386183,131.91,131.88,0.7]
[1765155062337,18.2044038,131.92,131.88,0.7]
[1765155063652,2.24386183,131.91,131.88,0.7]
[1765155063849,2.24386183,131.91,131.88,8.28261265]
[1765155064227,18.55272583,131.93,131.89,8.28190747]
[1765155064428,10.62386183,131.94,131.89,8.28190747]
[1765155064646,10.62386183,131.94,131.9,0.7]
[1765155065537,18.20315752,131.94,131.9,0.7]
[1765155066055,7.57929569,131.94,131.9,8.28130614]
[1765155066259,10.62386183,131.97,131.91,2.24386183]
[1765155066557,10.62386183,131.97,131.91,2.94386183]
[1765155066859,10.62386183,131.97,131.92,0.7]
[1765155067157,2.24386183,131.95,131.89,23.44368072]
[1765155067357,2.24386183,131.92,131.89,0.7]
[1765155067658,2.24386183,131.91,131.87,7.5831423]
[1765155067838,2.24386183,131.91,131.87,8.2831423]
[1765155068035,2.24386183,131.91,131.88,0.7]
[1765155068559,24.688864,131.94,131.88,8.28258465]
[1765155069453,7.57977715,131.93,131.88,8.28258465]
[1765155069655,26.52922003,131.93,131.88,0.7]
[1765155070042,2.24386183,131.9,131.88,0.7]
[1765155070363,2.24386183,131.91,131.88,0.7]
[1765155071246,9.82528268,131.91,131.88,0.7]
[1765155071858,9.82528268,131.91,131.86,8.38363659]
[1765155072096,2.24386183,131.89,131.86,0.1]
[1765155072364,2.24386183,131.9,131.87,0.7]
[1765155073289,9.82544683,131.9,131.87,0.7]
[1765155073577,24.688864,131.91,131.87,8.28315646]
[1765155073753,24.688864,131.91,131.88,0.7]
[1765155073943,8.38,131.91,131.88,0.7]
[1765155074344,2.24386183,131.92,131.88,0.7]
[1765155074547,43.63867401,131.93,131.88,8.28250669]
[1765155074548,16.308864,131.93,131.88,8.28250669]
[1765155074751,8.38,131.94,131.89,2.24386183]
[1765155074954,8.38,131.94,131.89,2.94386183]
[1765155075155,8.38,131.94,131.9,0.7]
[1765155075553,2.24386183,131.93,131.87,18.20685686]
[1765155075881,2.24386183,131.92,131.88,0.7]
[1765155076166,2.24386183,131.9,131.86,0.8]
[1765155076367,2.24386183,131.88,131.86,0.1]
[1765155076569,7.58265089,131.88,131.86,0.1]
[1765155077479,9.82651272,131.88,131.86,0.8]
[1765155079250,7.58265089,131.88,131.86,0.8]
[1765155080059,7.58265089,131.88,131.86,0.1]
[1765155081269,7.58265089,131.88,131.86,0.78]
[1765155082278,7.58207597,131.89,131.86,0.78]
[1765155084879,23.89001816,131.91,131.86,11.87942261]
[1765155085255,23.89001816,131.91,131.87,0.68]
[1765155085577,23.89001816,131.91,131.87,4.19571968]
[1765155086276,23.89001816,131.91,131.87,11.09875411]
[1765155086578,23.89001816,131.91,131.88,0.68]
[1765155088174,7.57977715,131.93,131.88,11.77836357]
[1765155088381,23.88864115,131.93,131.89,0.68]